Cogmind - Beta 15 @@@ ROGUE MODE // 2025.07.30 @ 17:36:58 Player: Dex'o Result: Self-destructed Performance ------------- Evolutions (1) 500 Regions Visited (2) 400 Robots Destroyed (3) 15 Value Destroyed (19) 19 Prototype IDs (8) 160 Alien Tech Used (0) 0 Bonus (0) 0 TOTAL SCORE: 1094 Bonus ------- None Cogmind --------- Core Integrity 393/400 Matter 212/300 Energy 96/125 System Corruption 0% Temperature Warm (181) Movement Hovering (116) Ox1 Location -9/Materials Parts ------- > --- POWER (1) -------- Light Ion Engine > --- PROPULSION (4) --- Improved Hover Unit Improved Hover Unit > --- UTILITY (2) ------ Small Storage Unit Seismic Detector > --- WEAPON (2) ------- Field Laser Field Laser > --- INVENTORY (8) ---- Light Ion Engine Aluminum Leg Aluminum Leg Improved Terrain Scanner Field Laser Field Laser Improved Datajack Improved Datajack Peak State ------------ > --- POWER ------------ Light Ion Engine > --- PROPULSION ------- Improved Hover Unit Improved Hover Unit Improved Hover Unit > --- UTILITY ---------- Small Storage Unit Seismic Detector > --- WEAPON ----------- Field Laser Field Laser > --- INVENTORY -------- Light Ion Engine Aluminum Leg Aluminum Leg Improved Terrain Scanner EM Pulse Gun Small Laser Field Laser [Rating: 16] Favorites ----------- Power Light Ion Engine Engine Light Ion Engine Propulsion Improved Hover Unit Wheel Wheel Hover Unit Improved Hover Unit Utility Small Storage Unit Device Seismic Detector Storage Small Storage Unit Weapon Field Laser Energy Gun Field Laser Build | -11 -10 -9 ------- Run | Yrd Mat Mat Slots Evolved 2 | . . 2 Power . | . . . Propulsion 2 | . . 2 Utility . | . . . Weapon . | . . . Parts Attached 15 | 7 4 4 Power 2 | 1 . 1 Engine 2 | 1 . 1 Core . | . . . Reactor . | . . . Propulsion 5 | 2 2 1 Treads . | . . . Leg . | . . . Wheel 2 | 2 . . Hover 3 | . 2 1 Flight . | . . . Utility 2 | 2 . . Device 1 | 1 . . Storage 1 | 1 . . Processor . | . . . Hackware . | . . . Protection . | . . . Artifact . | . . . Weapon 6 | 2 2 2 Energy Gun 6 | 2 2 2 Energy Cannon . | . . . Ballistic Gun . | . . . Ballistic Cannon . | . . . Launcher . | . . . Special Weapon . | . . . Impact Weapon . | . . . Slashing Weapon . | . . . Piercing Weapon . | . . . Special Melee Weapon . | . . . Unidentified Prototypes 1 | . 1 . Parts Lost 1 | . . 1 Power . | . . . Propulsion 1 | . . 1 Utility . | . . . Weapon . | . . . Highest Loss Streak 1 | . . 1 To Critical Strikes . | . . . Average Backups 6 | 3 7 7 Power 1 | . 1 1 Propulsion 2 | 1 3 2 Utility . | . 1 1 Weapon 1 | . 1 2 Tool/Special . | . . . Unused Backups 9 | . 2 7 Power . | . . . Propulsion 2 | . . 2 Utility 1 | . . 1 Weapon 4 | . 2 2 Tool/Special 2 | . . 2 Average Slot Usage (%) 85 | . 89 82 Engine 5 | . 5 5 Wheel 2 | . 7 . Hover 28 | . 21 33 Device 12 | . 14 11 Storage 12 | . 14 11 Energy Gun 23 | . 26 21 Peak Build Rating 16 | 7 14 16 Average Rating 11 | 5 11 15 On Entrance 6 | . 7 13 Naked Turns . | . . . Heaviest Build 15 | 12 12 15 Greatest Support 26 | 26 26 21 Greatest Overweight (x) 1 | . . 1 Average Overweight (x) . | . . . Largest Inventory Capacity 8 | 8 8 8 Average Capacity 7 | 7 8 8 Most Carried 8 | 6 8 8 Average Carried 6 | 3 7 7 Final Capacity 8 | 8 8 8 Final Carried 8 | 5 8 8 Class Distribution -------------------- 100% | Mutant Dominant Class ---------------- Mutant | -10/Materials Mutant | -9/Materials Resources | -11 -10 -9 ----------- Run | Yrd Mat Mat Matter Collected 252 | 223 . 29 Remotely . | . . . Salvage Created 64 | 35 . 29 Parts 5 | 4 . 1 Haulers Intercepted . | . . . Recyclers Shooed . | . . . Parts Field Recycled . | . . . Retrieved Matter . | . . . Parts Self-Destructed . | . . . Prevented . | . . . Kills | -11 -10 -9 ------- Run | Yrd Mat Mat Combat Hostiles Destroyed . | . . . Classes Destroyed 2 | 1 . 1 Builder 1 | . . 1 Tunneler 2 | 2 . . Best Kill Streak 2 | 2 . 1 Combat Bots Only . | . . . Max Kills in Single Turn 1 | 1 . 1 Gunslinging . | . . . Exploded . | . . . Melee . | . . . Uniques/NPCs Destroyed . | . . . Combat | -11 -10 -9 -------- Run | Yrd Mat Mat Hostile Shots Fired 46 | . 35 11 Missed 22 | . 17 5 Hits 24 | . 18 6 Projectile 24 | . 18 6 Damage Taken 268 | 23 181 64 Core 67 | 23 37 7 Absorbed by Shields . | . . . Core Remaining (%) 83 | 90 76 . Volleys Fired 7 | 4 . 3 Largest 2 | 2 . 2 Hottest 126 | 80 . 126 Shots Fired 14 | 8 . 6 Gun 14 | 8 . 6 Cannon . | . . . Launcher . | . . . Special . | . . . Kinetic . | . . . Thermal 10 | 4 . 6 Explosive . | . . . Electromagnetic 4 | 4 . . Robot Hit Streak 3 | 3 . 3 Robot Miss Streak 3 | 1 . 3 Penetration Max . | . . . Secondary Targets . | . . . Shots Hit Robots 7 | 5 . 2 Core Hits 3 | 2 . 1 Critical Kills . | . . . Critical Parts Destroyed . | . . . Critical Strikes . | . . . Melee Attacks . | . . . Impact . | . . . Slashing . | . . . Piercing . | . . . Sneak Attacks . | . . . Combat Hostiles . | . . . Follow-up Attacks . | . . . Damage Inflicted 144 | 81 . 63 Guns 90 | 55 . 35 Cannons . | . . . Explosions 26 | 26 . . Melee . | . . . Ramming 28 | . . 28 Kinetic . | . . . Thermal 104 | 69 . 35 Explosive . | . . . Electromagnetic 12 | 12 . . Impact . | . . . Slashing . | . . . Piercing . | . . . Highest Corruption . | . . . Average Corruption . | . . . Corruption Purged . | . . . Corruption Blocked . | . . . Overload Shots . | . . . Overflow Damage 6 | . . 6 Projectiles . | . . . Explosions . | . . . Melee 6 | . . 6 Knockbacks . | . . . Impact . | . . . Kinetic . | . . . Secondary . | . . . Self-Inflicted Damage 37 | 23 . 14 Shots 1 | 1 . . Rammed 1 | . . 1 Targets Rammed 1 | . . 1 Kicked . | . . . Crushed . | . . . Highest Temperature 181 | 48 . 181 Average Temperature 50 | 19 . 95 Received Heat Transfer 75 | . 75 . Siege Activations . | . . . Martial Activations . | . . . Shielding Activations . | . . . Robots Disrupted . | . . . Combat Hostiles . | . . . Robots Corrupted . | . . . Combat Hostiles . | . . . Parts Fried 2 | . . 2 Impact Corruptions 1 | . . 1 Robots Melted . | . . . Combat Hostiles . | . . . Parts Melted 1 | 1 . . Heat Transferred 224 | 150 . 74 Parts Sabotaged . | . . . Parts Stolen . | . . . Parts Stripped . | . . . Power Chain Reactions 1 | 1 . . Alert | -11 -10 -9 ------- Run | Yrd Mat Mat Maximum Alert Level . | . . . Low Security (%) 100 | 100 100 100 Level 1 . | . . . Level 2 . | . . . Level 3 . | . . . Level 4 . | . . . Level 5 . | . . . High Security . | . . . Max Security . | . . . Peak Influence 29 | 10 . 29 Initial . | . . . Average 2 | . . 5 Influence Increases 44 | 10 . 34 Destroy 0b10 Robot/NC 15 | 10 . 5 Successful Hack 14 | . . 14 Partial Spotted 15 | . . 15 Influence Decreases 40 | 10 . 30 Time Decay 30 | 10 . 20 Lost Part 10 | . . 10 Squads Dispatched 1 | . 1 . Investigation . | . . . Extermination . | . . . Reinforcement 1 | . 1 . Assault . | . . . Garrison . | . . . Intercept . | . . . Searches Triggered . | . . . Construction Impeded . | . . . Haulers Reinforced . | . . . Active Scanning Responses . | . . . Cargo Convoy Interrupts . | . . . Stealth | -11 -10 -9 --------- Run | Yrd Mat Mat Distress Signals 1 | . 1 . Communications Jammed . | . . . Distress Signals . | . . . Times Spotted 18 | . 11 7 Peak Tracking Total 11 | . 11 6 Tactical Retreats . | . . . Traps | -11 -10 -9 ------- Run | Yrd Mat Mat Traps Triggered . | . . . Indirectly . | . . . Trap Hack Attempts . | . . . Triggered . | . . . Disarmed . | . . . Reprogrammed . | . . . Reused . | . . . Traps Extracted . | . . . Installed . | . . . Triggered . | . . . Machines | -11 -10 -9 ---------- Run | Yrd Mat Mat Machines Disabled . | . . . Max in Single Turn . | . . . Machines Repaired . | . . . Machines Dismantled . | . . . Machines Sabotaged . | . . . Overloaded Fab Kills . | . . . Hacking | -11 -10 -9 --------- Run | Yrd Mat Mat Machines Accessed 3 | . 1 2 Terminals 3 | . 1 2 Fabricators . | . . . Repair Stations . | . . . Recycling Units . | . . . Scanalyzers . | . . . Garrison Access . | . . . Total Hacks 9 | . 3 6 Successful 4 | . 2 2 Failed 5 | . 1 4 Catastrophic 1 | . . 1 Database Lockouts . | . . . Manual 9 | . 3 6 Terminals 9 | . 3 6 Fabricators . | . . . Repair Stations . | . . . Recycling Units . | . . . Scanalyzers . | . . . Garrison Access . | . . . Terminal Hacks 3 | . 1 2 Prototype ID Bank 3 | . 1 2 Fabricator Hacks . | . . . Repair Station Hacks . | . . . Recycling Unit Hacks . | . . . Scanalyzer . | . . . Garrison Access Hacks . | . . . Unauthorized Hacks 1 | . 1 . Terminals 1 | . 1 . Botnet 1 | . 1 . Fabricators . | . . . Repair Stations . | . . . Recycling Units . | . . . Scanalyzers . | . . . Garrison Access . | . . . Data Cores Recovered . | . . . Used . | . . . Hacking Detections 3 | . 1 2 Full Trace Events . | . . . Feedback Events . | . . . Feedback Blocked . | . . . Robot Schematics Acquired . | . . . Robots Built . | . . . Authchips . | . . . Time . | . . . Total Robot Build Rating . | . . . Part Schematics Acquired . | . . . Parts Built . | . . . Authchips . | . . . Time . | . . . Total Part Build Rating . | . . . Parts Repaired . | . . . Time . | . . . Parts Recycled . | . . . Recycled Matter . | . . . Retrieved Matter . | . . . Retrieved Components . | . . . Parts Scanalyzed . | . . . Part Schematics Acquired . | . . . Parts Damaged . | . . . Bothacking | -11 -10 -9 ------------ Run | Yrd Mat Mat Used RIF Installer . | . . . Robots Hacked . | . . . Non-combat . | . . . Combat . | . . . Robot Hacks Applied . | . . . Relay Couplers Released . | . . . Fabnet Peak Effective % . | . . . Robots Rewired . | . . . Allies Hacked . | . . . Hacks Repelled . | . . . Allies | -11 -10 -9 -------- Run | Yrd Mat Mat Total Allies . | . . . Largest Group . | . . . Highest-Rated Group . | . . . Highest-Rated Ally . | . . . Total Orders . | . . . Ally Attacks . | . . . Total Damage . | . . . Kills . | . . . Allies Corrupted . | . . . Allies Melted . | . . . Intel | -11 -10 -9 ------- Run | Yrd Mat Mat Active Infowar (turns) 244 | 9 88 147 Seismic 244 | 9 88 147 Robot Analysis Total . | . . . Derelict Logs Recovered . | . . . Drone Launches . | . . . Drone Recoveries . | . . . Exploration | -11 -10 -9 ------------- Run | Yrd Mat Mat Turns Passed 338 | 103 88 147 Spaces Moved 409 | 85 125 199 Core 2 | 2 . . Treads . | . . . Legs . | . . . Wheels 95 | 83 12 . Hover 312 | . 113 199 Flight . | . . . Fastest Speed 50 | 50 56 52 Average Speed 65 | 88 59 59 Slowest Speed 120 | 90 90 120 Overloaded Moves . | . . . Propulsion Burnouts . | . . . Robots Hopped . | . . . Potential Cave-ins . | . . . Cave-ins Triggered . | . . . Exploration Rate (%) 17 | 4 31 18 Regions Visited 2 Branch Regions . Pre-discovered Areas . | . . . Known Exits Taken . | . . . Unknown Exits Taken 2 | 1 1 . Scrap Searched . | . . . Spaces Dug . | . . . Terrain Destroyed 5 | 5 . . Melee . | . . . Projectile . | . . . AOE 5 | 5 . . Terrain Rammed . | . . . Walls Destroyed . | . . . Machines Disabled . | . . . Actions | -11 -10 -9 --------- Run | Yrd Mat Mat Total 464 | 101 140 223 Wait 7 | . . 7 Move 407 | 84 124 199 Hop . | . . . Pick Up 16 | 6 5 5 Fast Attach 8 | 6 1 1 Attach 5 | 1 1 3 Detach 3 | . 3 . Swap 2 | . 2 . Drop 8 | . 4 4 Fire 7 | 4 . 3 Melee . | . . . Ram 1 | . . 1 Kick . | . . . Crush . | . . . Escape Stasis . | . . . Rewire . | . . . Trap . | . . . Miscellaneous . | . . . Route ------- -11/Scrapyard -10/Materials -9/Materials History --------- Turn | Location | Event 11 | -11/Scrapyard | Discovered new exit (range 15) 104 | -11/Scrapyard | Entered Materials 183 | -10/Materials | Discovered new exit (range 16) 192 | -10/Materials | Entered another Materials area 192 | -9/Materials | Evolved 2 slots: Propulsion x2 315 | -9/Materials | Build established: Mutant 339 | -9/Materials | Self-destructed Last Messages --------------- Downloading prototype IDs... Enh. Autogun Imp. Flight Unit Connecting with Terminal... >>Prototypes Downloading prototype IDs... Cld. Ion Engine Prc. Beam Rifle Hvy. EM Shotgun K-01 Serf collects debris. Slammed into U-05 Engineer. Destroyed Terrain Scan Processor. U-05 Engineer system corrupted by crushing effect. Wheel fried. Structural Scanner fried. U-05 Engineer destroyed. Acquired 29 matter. U-05 Engineer works on Processing Tank. Imp. Hover Unit destroyed. Map ----- +----------------------------------------------------+ | ????????????????????????????????#???????# # | | ????????????????????????????????# #####+###### | | ????????????????????????????????# | | ??????????????????????????????????????## # | | ???????????????????????????????????????#[ # | | ???????????????????????????????????????#[[ ///# | | ???????????????????????????????????????#[ ///# ## | | ???????????????????????????????????????######## #? | | ??????????????????????????????????????????????# #? | | ??????????????????????????????????????????????# #? | | ??????????????????????????????????????????????# #? | | ????????????????????????????????? ??????????# +? | | ????????????????????????????????? #?????????# #? | | ????????????????????????????????? +?????????# #? | | ????????????????????????????????? #?????????# #? | | ???????????????????????????????## #?????????# #? | | ??????????????????????????????? #?????????# ## | | ???????????????????????????????? #?????????# | | ???????????????????????????????? #?????????# ## | | ???????????????????????????????? #?????????# #? | | ???????????????????????????????? #?????????# #? | | ???????????????????????????????? #?????????# #? | | ???????????????????#####????????# #?????????# #? | | ???????????????????# ???????# #?????????# #? | | ???????????????????# ######## #?????????# #? | | ???????????????????# " @ * g ###+####### ## | | ???????????????????# ######## | | ???????????????????# sss ???????# | | ????????????????? s????????# """ | | ?????????????? ?????#####+######## """ | | ?????????????u """ ??????#|** #??# """ | | ???????????? ## R" ??????#|** #??# | | ???????????????# """ ???????#|* """ #??# | | ???????????????# ? ???????# """ #### """ | | ?????????????????? r ????????+ """ + """ | | ?????????????????? ????????# # """ | | ??????????????????u ?????????# # | | ????????????????? < ?????????# # | | ?????????????????? ??????############### """ | | ?????????????????????????# ! ?????# """ | | ?????????????????????????# ?????# """ | | ?????????????????????????# ????# | | ?????????????????????????# ##### | | ?????????????????????????+ !!! + | | ?????????????????????????# !!! #####+##+## | | ?????????????????????????# !!! ?# ## | | ?????????????????????????# ??# ##! | | ?????????????????????????##### ###??# ""T"" ###!!! | | ?????????????????????????????#??????# """"" #?#### | | ????????????????????????????????????#########????? | +----------------------------------------------------+ Best States ------------- Heat Dissipation 28 Energy Generation 10 Energy Capacity 125 Matter Stores 263 Matter Capacity 300 Sight Range 16 Terrain Scan Density 10 Evasion (%) 54 Item Schematics ----------------- None Robot Schematics ------------------ None Fabricated ------------ Nothing Repaired ---------- Nothing Alien Tech Used ----------------- None Achievements -------------- None Challenges ------------ None Game ------ Seed BombardmentPrecisionGravjet Manual? 0 Play Time 00:07:05 Cumulative 11.3 hours Start 2025.07.30 @ 17:30:07 End 2025.07.30 @ 17:36:58 Sessions 1 Manual Loads 0 Difficulty Rogue Special Mode None Game No. 17 Rogue 17 Adventurer 0 Explorer 0 Win Type - Total 0 Types 0/0/0/0/0/0/0/0/0/0 Lore% 10 Gallery% 15 Achievement% 16 Wizard Run 0 Options --------- Layout 1 ASCII 0 Keyboard 0 Movement Mouse Keybinds 0 Fullscreen 2 Font 24/Smallcaps Map View 50x35 Zoom Use 0% Tactical HUD 0 Map Filters NONE Filters NONE Steam 1 RUN: 53cab2c5-7ed4-4801-b526-1d25767316d8